bitfinex-derivatives/quotes_ETHF0:USTF0_20250405
["timestamp","ask_amount","ask_price","bid_price","bid_amount"]
[1743813213354,1.45574516,1817.5,1817.4,6.92140714]
[1743813213756,0.00824516,1817.5,1817.4,6.92140714]
[1743813214151,0.00824516,1817.5,1817.4,3.71360714]
[1743813214351,0.00824516,1817.5,1817.4,6.92140714]
[1743813215053,0.00824516,1817.5,1817.4,3.71360714]
[1743813215253,0.00824516,1817.5,1817.4,3.71380696]
[1743813215454,0.00824516,1817.5,1817.4,6.92160696]
[1743813217055,0.00824516,1817.5,1817.4,6.92189453]
[1743813217960,0.00824516,1817.5,1817.4,5.50989453]
[1743813218653,0.00824516,1817.5,1817.4,7.01269453]
[1743813218955,0.00824516,1817.5,1817.4,7.01317237]
[1743813220862,0.00824516,1817.5,1817.4,7.01385562]
[1743813223365,0.00824516,1817.5,1817.4,7.5540289]
[1743813224666,0.00824516,1817.5,1817.4,7.55557168]
[1743813228267,0.00824516,1817.5,1817.4,6.21886683]
[1743813228570,0.00824516,1817.5,1817.4,7.55566656]
[1743813229765,0.75284516,1817.5,1817.4,7.55566656]
[1743813230270,0.75284516,1817.5,1817.4,4.34786656]
[1743813230472,0.75284516,1817.5,1817.4,7.55566656]
[1743813231374,0.75284516,1817.5,1817.4,4.34786656]
[1743813231969,0.75284516,1817.5,1817.4,7.55566656]
[1743813232173,0.75284516,1817.5,1817.4,4.34813252]
[1743813232474,0.75284516,1817.5,1817.4,7.55593252]
[1743813233168,0.75284516,1817.5,1817.4,4.34813252]
[1743813233361,0.00824516,1817.5,1817.4,7.55593252]
[1743813237773,0.00824516,1817.5,1817.4,7.55599125]
[1743813239174,1.42854516,1817.5,1817.4,7.55599125]
[1743813240574,1.42854516,1817.5,1817.4,6.05319125]
[1743813241077,1.42854516,1817.5,1817.4,7.43629125]
[1743813242178,1.42854516,1817.5,1817.4,7.43632551]
[1743813244582,1.42854516,1817.5,1817.4,7.43656601]
[1743813249288,0.00824516,1817.5,1817.4,7.43656601]
[1743813250191,0.00824516,1817.5,1817.4,7.43674284]
[1743813250590,0.00824516,1817.5,1817.4,7.43694718]
[1743813252193,0.00824516,1817.5,1817.4,7.43693013]
[1743813253987,0.00824516,1817.5,1817.4,6.09916683]
[1743813254186,0.00824516,1817.5,1817.4,7.43694218]
[1743813254387,0.00824516,1817.5,1817.4,7.43694832]
[1743813255492,1.47014516,1817.5,1817.4,7.43694832]
[1743813255893,1.47014516,1817.5,1817.4,7.4370021]
[1743813259794,1.47014516,1817.5,1817.4,5.51311819]
[1743813260489,1.47014516,1817.5,1817.4,6.05360415]
[1743813260897,1.47014516,1817.5,1817.4,5.51311819]
[1743813261593,1.47014516,1817.5,1817.4,6.05352175]
[1743813261990,1.47014516,1817.5,1817.4,5.51311819]
[1743813263191,1.47014516,1817.5,1817.4,6.05352397]
[1743813263393,1.47014516,1817.5,1817.4,6.90269414]
[1743813263596,1.47014516,1817.5,1817.4,5.51249414]
[1743813266202,1.47014516,1817.5,1817.4,2.30469414]
[1743813266395,1.47014516,1817.5,1817.4,5.51249414]
[1743813267206,1.47014516,1817.5,1817.4,7.01709414]
[1743813267503,1.47014516,1817.5,1817.4,7.55740873]
[1743813267896,1.47014516,1817.5,1817.4,7.01709414]
[1743813269103,1.47014516,1817.5,1817.4,7.55742902]
[1743813269500,1.47014516,1817.5,1817.4,7.01709414]
[1743813269702,0.00824516,1817.5,1817.4,7.55742723]
[1743813270902,0.00824516,1817.5,1817.4,7.55735474]
[1743813272206,0.00824516,1817.5,1817.4,7.01701523]
[1743813272599,0.00824516,1817.5,1817.4,7.55735563]
[1743813273106,0.00824516,1817.5,1817.4,4.34955563]
[1743813273407,0.00824516,1817.5,1817.4,5.51241523]
[1743813273605,1.44224516,1817.5,1817.4,5.51241523]
[1743813274003,1.44224516,1817.5,1817.4,6.05284268]
[1743813274203,1.44224516,1817.5,1817.4,7.55824268]
[1743813276501,1.44224516,1817.5,1817.4,7.55837308]
[1743813279609,1.44224516,1817.5,1817.4,7.01794515]
[1743813281809,1.44224516,1817.5,1817.4,7.55835067]
[1743813282010,1.44224516,1817.5,1817.4,7.01794515]
[1743813282205,1.44224516,1817.5,1817.4,7.01791895]
[1743813282517,1.44224516,1817.5,1817.4,7.55834011]
[1743813282910,1.44224516,1817.5,1817.4,7.01791895]
[1743813283213,1.44224516,1817.5,1817.4,7.55835233]
[1743813284105,1.44224516,1817.5,1817.4,4.35058421]
[1743813284314,1.44224516,1817.5,1817.4,7.55838421]
[1743813284511,1.44224516,1817.5,1817.4,4.35058421]
[1743813284719,1.44224516,1817.5,1817.4,7.01791895]
[1743813285216,1.44224516,1817.5,1817.4,5.51251895]
[1743813285916,1.44224516,1817.5,1817.4,5.51269714]
[1743813287022,2.21282516,1817.5,1817.4,5.51269714]
[1743813292328,2.21282516,1817.5,1817.4,4.71606683]
[1743813292529,2.21282516,1817.5,1817.4,5.51191818]
[1743813293028,2.21282516,1817.5,1817.4,4.71606683]
[1743813293629,2.21282516,1817.5,1817.4,1.50826683]
[1743813298737,2.21282516,1817.5,1817.4,0.77062]
[1743813302539,2.21282516,1817.5,1817.4,1.511315]
[1743813303140,2.21282516,1817.5,1817.4,2.30671556]
[1743813303341,2.21282516,1817.5,1817.4,3.81621556]
[1743813304027,2.21282516,1817.5,1817.4,3.81621385]
[1743813305840,2.21282516,1817.5,1817.4,3.81630126]
[1743813309142,2.21282516,1817.5,1817.4,3.81667568]
[1743813310339,0.00824516,1817.5,1817.4,3.81667568]
[1743813310539,4.1807,1817.7,1817.6,0.77053]
[1743813310843,0.6977,1817.7,1817.6,1.56639068]
[1743813311040,1.46819,1817.7,1817.6,1.56639068]
[1743813311245,1.46819,1817.7,1817.6,2.99429068]
[1743813311449,0.77049,1817.7,1817.6,2.19843]
[1743813311644,0.77049,1817.7,1817.6,3.73480728]
[1743813318146,4.97162516,1817.8,1817.7,0.77049]
[1743813318343,4.97162516,1817.8,1817.7,2.955385]
[1743813320452,4.97162516,1817.8,1817.7,3.75035331]
[1743813320654,4.97162516,1817.8,1817.7,2.955385]
[1743813323455,6.45222516,1817.8,1817.7,2.955385]
[1743813331761,6.45222516,1817.8,1817.7,1.511185]
[1743813333259,6.45222516,1817.8,1817.7,0.77049]
[1743813334460,0.77053,1817.6,1817.5,3.2078]
[1743813334762,0.77058,1817.5,1817.4,0.77059]
[1743813334949,1.49338,1817.5,1817.4,0.77059]
[1743813335158,4.97538,1817.5,1817.4,0.77059]
[1743813335355,6.37308,1817.5,1817.4,0.77059]
[1743813335959,6.37308,1817.5,1817.4,1.51168244]
[1743813336973,6.37308,1817.5,1817.4,0.77059]
[1743813342567,4.97538,1817.5,1817.4,2.30624469]
[1743813342967,4.97538,1817.5,1817.4,3.82114469]
[1743813343268,4.97538,1817.5,1817.4,3.82109216]
[1743813343566,4.25258,1817.5,1817.4,3.82109216]
[1743813344565,2.20467,1817.6,1817.5,0.77058]
[1743813344767,2.20467,1817.6,1817.5,2.21808]
[1743813345369,2.20467,1817.6,1817.5,2.95854388]
[1743813347064,2.20467,1817.6,1817.5,2.95845934]
[1743813350172,2.20467,1817.6,1817.5,3.75361498]
[1743813350579,2.20467,1817.6,1817.5,2.95845934]
[1743813351278,2.20467,1817.6,1817.5,3.75364401]
[1743813354375,1.4341,1817.6,1817.5,3.75364401]
[1743813354675,1.4341,1817.6,1817.5,3.75370029]
[1743813355579,2.20463,1817.6,1817.5,3.75370029]
[1743813356379,2.20463,1817.6,1817.5,3.75378382]
[1743813360178,1.4341,1817.6,1817.5,3.75395105]
[1743813360383,5.74743,1817.7,1817.6,0.77053]
[1743813360577,5.74743,1817.7,1817.6,2.97172171]
[1743813360882,5.74743,1817.7,1817.6,3.71210105]
[1743813363382,1.46264516,1817.8,1817.6,3.71210105]
[1743813363383,1.46264516,1817.8,1817.7,0.77049]
[1743813363582,0.00824516,1817.8,1817.7,6.29968171]
[1743813363778,0.00824516,1817.8,1817.7,7.73198171]
[1743813364486,0.00824516,1817.8,1817.7,7.78676105]
[1743813365283,0.00824516,1817.8,1817.7,7.78639856]
[1743813365486,0.77869516,1817.8,1817.7,7.78639856]
[1743813365682,1.51279516,1817.8,1817.7,7.78639856]
[1743813365875,2.94819516,1817.8,1817.7,7.78639856]
[1743813366281,2.17774516,1817.8,1817.7,7.78639856]
[1743813367287,2.94819516,1817.8,1817.7,7.78639856]
[1743813368185,2.94819516,1817.8,1817.7,4.57859856]
[1743813368384,2.94819516,1817.8,1817.7,7.78639856]
[1743813368886,2.17774516,1817.8,1817.7,7.78639856]
[1743813369489,2.94819516,1817.8,1817.7,7.78639856]
[1743813369789,2.94819516,1817.8,1817.7,7.03969856]
[1743813370788,2.17774516,1817.8,1817.7,7.03969856]
[1743813370990,2.17774516,1817.8,1817.7,7.03957633]
[1743813374590,2.94819516,1817.8,1817.7,7.03957633]
[1743813375089,2.94819516,1817.8,1817.7,3.83177633]
[1743813375290,2.94819516,1817.8,1817.7,7.03957633]
[1743813376181,2.17774516,1817.8,1817.7,7.03957633]
[1743813376588,2.94819516,1817.8,1817.7,7.03997565]
[1743813377086,2.17774516,1817.8,1817.7,7.03997565]
[1743813378392,2.94819516,1817.8,1817.7,7.04007883]
[1743813378591,2.17774516,1817.8,1817.7,7.04007883]
[1743813379592,2.94819516,1817.8,1817.7,7.04007883]
[1743813379892,2.94819516,1817.8,1817.7,5.51417883]
[1743813382292,2.94819516,1817.8,1817.7,5.51438644]
[1743813384088,2.94819516,1817.8,1817.7,5.51523385]
[1743813386990,2.94819516,1817.8,1817.7,2.30743385]
[1743813387192,2.94819516,1817.8,1817.7,5.51523385]
[1743813389693,2.94819516,1817.8,1817.7,5.51572233]
[1743813390601,2.17774516,1817.8,1817.7,5.51572233]
[1743813390797,0.00824516,1817.8,1817.7,6.98702233]
[1743813391099,0.00824516,1817.8,1817.7,7.75262233]
[1743813391497,0.00824516,1817.8,1817.7,6.95627204]
[1743813391696,0.00824516,1817.8,1817.7,7.75257225]
[1743813392697,34.684,1818.4,1818.2,0.77028]
[1743813392900,6.3687,1818.3,1818.2,0.77028]
[1743813393203,6.3687,1818.3,1818.2,2.30693292]
[1743813393794,7.13894,1818.3,1818.2,3.69013292]
[1743813396707,6.3687,1818.3,1818.2,3.69013292]
[1743813396908,7.13894,1818.3,1818.2,3.69013292]
[1743813397206,7.13894,1818.3,1818.2,3.71405172]
[1743813398705,2.8877,1818.3,1818.2,3.71405172]
[1743813400501,2.8877,1818.3,1818.2,2.97296968]
[1743813400908,2.8877,1818.3,1818.2,2.97219447]
[1743813401410,3.65794,1818.3,1818.2,3.71125871]
[1743813401907,2.8877,1818.3,1818.2,3.71125871]
[1743813402208,2.8877,1818.3,1818.2,2.97219447]
[1743813405813,3.65794,1818.3,1818.2,2.97219447]
[1743813406013,2.8877,1818.3,1818.2,2.15348]
[1743813407815,2.8877,1818.3,1818.2,2.97179461]
[1743813408417,2.8877,1818.3,1818.2,2.9717377]
[1743813408610,2.8877,1818.3,1818.2,2.15348]
[1743813410017,2.8877,1818.3,1818.2,2.97168772]
[1743813410321,2.8877,1818.3,1818.2,2.97169335]
[1743813410916,2.8877,1818.3,1818.2,2.15348]
[1743813411112,1.4996,1818.3,1818.2,2.15348]
[1743813411315,0.00824516,1818.4,1818.3,0.77024]
[1743813411518,0.00824516,1818.4,1818.3,2.23914]
[1743813411817,0.77844516,1818.4,1818.3,2.23914]
[1743813412215,0.00824516,1818.4,1818.3,2.23914]
[1743813412918,0.77844516,1818.4,1818.3,2.23914]
[1743813413122,2.27154516,1818.4,1818.3,2.23914]
[1743813413819,1.50134516,1818.4,1818.3,2.23914]
[1743813415623,2.27154516,1818.4,1818.3,2.23914]
[1743813415818,2.27154516,1818.4,1818.3,3.05771678]
[1743813416611,1.50134516,1818.4,1818.3,3.05771678]
[1743813417316,2.27154516,1818.4,1818.3,3.05771678]
[1743813417521,2.27154516,1818.4,1818.3,3.79708557]
[1743813418023,1.50134516,1818.4,1818.3,3.79708557]
[1743813419623,1.50134516,1818.4,1818.3,2.97850879]
[1743813419824,1.50134516,1818.4,1818.3,3.79790028]
[1743813420519,2.27154516,1818.4,1818.3,3.79790028]
[1743813421218,1.50134516,1818.4,1818.3,3.79790028]
[1743813422928,2.27154516,1818.4,1818.3,3.79901042]
[1743813423126,2.27154516,1818.4,1818.3,7.00681042]
[1743813424422,2.27154516,1818.4,1818.3,5.53791042]
[1743813425929,7.97934516,1818.4,1818.3,0.73936879]
[1743813426121,0.77024,1818.3,1818.2,0.77024]
[1743813426327,2.94804,1818.3,1818.2,0.77024]
[1743813428331,2.1778,1818.3,1818.2,0.77024]
[1743813428526,0.7388,1818.3,1818.2,1.57934758]
[1743813428930,0.7388,1818.3,1818.2,3.85341986]
[1743813431133,0.7388,1818.3,1818.2,3.85340866]
[1743813432237,0.7388,1818.3,1818.2,3.85345388]
[1743813434138,0.7388,1818.3,1818.2,3.85347026]
[1743813434838,1.50904,1818.3,1818.2,3.85347026]
[1743813435033,3.03284,1818.3,1818.2,3.85347026]
[1743813435234,2.2626,1818.3,1818.2,3.85347026]
[1743813435432,3.48724516,1818.4,1818.3,0.77024]
[1743813435628,4.25234516,1818.4,1818.3,3.82447026]
[1743813436030,5.02254516,1818.4,1818.3,3.82447026]
[1743813436637,6.42664516,1818.4,1818.3,3.82447026]
[1743813439732,6.42664516,1818.4,1818.3,3.82450015]
[1743813441642,6.42664516,1818.4,1818.3,3.8245006]
[1743813442945,5.65644516,1818.4,1818.3,3.8245006]
[1743813443539,5.65644516,1818.4,1818.3,3.82448554]
[1743813444547,2.17744516,1818.4,1818.3,3.82448554]
[1743813446549,2.94764516,1818.4,1818.3,3.82448554]
[1743813448752,2.94764516,1818.4,1818.3,7.03228554]
[1743813449045,2.94764516,1818.4,1818.3,6.22311228]
[1743813449244,2.94764516,1818.4,1818.3,7.03219841]
[1743813450651,2.94764516,1818.4,1818.3,3.82439841]
[1743813450950,2.94764516,1818.4,1818.3,6.22311228]
[1743813451150,2.94764516,1818.4,1818.3,7.03220116]
[1743813452351,2.94764516,1818.4,1818.3,1.54996116]
[1743813452555,2.94764516,1818.4,1818.3,0.74087228]
[1743813452746,5.44764516,1818.4,1818.3,0.21593824]
[1743813453052,0.77028,1818.2,1818.1,0.00824516]
[1743813453249,0.77028,1818.2,1818.1,1.58785258]
[1743813453650,3.01728,1818.2,1818.1,1.58785258]
[1743813458857,3.01728,1818.2,1818.1,0.81753258]
[1743813459061,3.01728,1818.2,1818.1,0.00824516]
[1743813460361,3.01728,1818.2,1818.1,0.77856516]
[1743813463171,3.76138,1818.2,1818.1,0.77856516]
[1743813470671,3.76138,1818.2,1818.1,0.00824516]
[1743813471570,3.76138,1818.2,1818.1,0.77856516]
[1743813472167,3.76138,1818.2,1818.1,0.00824516]
[1743813473570,3.76138,1818.2,1818.1,0.77856516]
[1743813480979,3.76138,1818.2,1818.1,0.00824516]
[1743813483984,3.76138,1818.2,1818.1,0.77856516]
[1743813485376,3.76138,1818.2,1818.1,1.58896471]
[1743813485576,3.76138,1818.2,1818.1,2.32707825]
[1743813485577,7.23938,1818.2,1818.1,2.32707825]
[1743813485783,5.70678,1818.2,1818.1,2.32707825]
[1743813485984,5.70678,1818.2,1818.1,3.82637825]
[1743813487879,5.70678,1818.2,1818.1,3.82151603]
[1743813488982,5.70678,1818.2,1818.1,0.7463587]
[1743813489188,11.41458,1818.2,1818.1,0.7463587]
[1743813489486,11.41458,1818.2,1818.1,0.00824516]
[1743813489686,11.51430887,1818.2,1818.1,0.00824516]
[1743813490290,11.41458,1818.2,1818.1,0.00824516]
[1743813490585,11.51430743,1818.2,1818.1,0.00824516]
[1743813490783,11.41458,1818.2,1818.1,0.00824516]
[1743813492287,11.51430765,1818.2,1818.1,0.00824516]
[1743813494690,3.85195,1818.0,1817.3,3.2078]
[1743813494880,3.85195,1818.0,1816.8,5.926]
[1743813494881,3.2078,1817.4,1817.0,3.9582]
[1743813495190,0.7707,1817.2,1817.1,0.77004906]
[1743813495782,0.77079,1817.0,1816.9,2.16172]
[1743813495984,0.77079,1817.0,1816.9,0.77082]
[1743813496586,1.46519,1817.0,1816.9,0.77082]
[1743813497290,0.77083,1816.9,1816.8,3.98688516]
[1743813497490,1.46522,1817.0,1816.9,0.77083]
[1743813500086,5.73608,1817.1,1817.0,0.77079]
[1743813500286,4.26478,1817.1,1817.0,0.77079]
[1743813502095,0.77083,1817.0,1816.9,0.77081]
[1743813503097,4.26478,1817.1,1817.0,0.77079]
[1743813505192,0.77073,1817.2,1817.1,0.77073]
[1743813505398,4.25973,1817.2,1817.1,0.77073]
[1743813506197,0.77077,1817.1,1817.0,0.77076]
[1743813516700,0.77077,1817.1,1817.0,2.22446]
[1743813518600,2.29567,1817.1,1817.0,2.22446]
[1743813520404,2.29567,1817.1,1817.0,1.4537]
[1743813523907,2.29567,1817.1,1817.0,2.22449]
[1743813524306,2.29567,1817.1,1817.0,1.4537]
[1743813524609,2.29567,1817.1,1817.0,2.98728471]
[1743813524808,2.29567,1817.1,1817.0,2.21649471]
[1743813525001,2.29567,1817.1,1817.0,2.98728471]
[1743813525198,2.29567,1817.1,1817.0,3.79411458]
[1743813528004,2.29567,1817.1,1817.0,3.79409733]
[1743813529908,4.25973,1817.2,1817.1,0.77075]
[1743813530109,1.50214516,1817.3,1817.1,0.77075]
[1743813530110,5.75284516,1817.3,1817.2,0.7707]
[1743813530410,5.75284516,1817.3,1817.2,2.96321262]
[1743813530813,5.75284516,1817.3,1817.2,3.72568069]
[1743813531806,5.01444516,1817.3,1817.2,3.72568069]
[1743813532716,5.01444516,1817.3,1817.2,3.72541143]
[1743813533103,5.01444516,1817.3,1817.2,2.91919471]
[1743813533310,0.00824516,1817.3,1817.2,6.93312732]
[1743813544218,0.00824516,1817.3,1817.2,3.72532732]
[1743813544420,0.00824516,1817.3,1817.2,6.93312732]
[1743813544717,0.77890516,1817.3,1817.2,6.93312732]
[1743813544917,0.00824516,1817.3,1817.2,6.93312732]
[1743813545123,0.77890516,1817.3,1817.2,6.93312732]
[1743813545322,2.17470516,1817.3,1817.2,6.93312732]
[1743813545716,2.17470516,1817.3,1817.2,5.54742732]
[1743813546021,2.17470516,1817.3,1817.2,1.53349471]
[1743813546424,3.57620516,1817.3,1817.2,0.7707]
[1743813546918,8.21228516,1817.3,1816.9,1.92704]
[1743813547125,0.77079,1817.1,1817.0,1.53109244]
[1743813547323,0.77079,1817.1,1817.0,0.76032244]
[1743813547528,0.77079,1817.0,1816.9,0.7708]
[1743813547828,2.25929,1817.0,1816.9,1.53136355]
[1743813552427,2.25929,1817.0,1816.9,0.7708]
[1743813558422,1.4885,1817.0,1816.9,0.7708]
[1743813558831,2.9443,1817.0,1816.9,0.7708]
[1743813559031,3.71509,1817.0,1816.9,0.7708]
[1743813559231,3.71509,1817.0,1816.9,1.53115482]
[1743813560934,3.71509,1817.0,1816.9,0.7708]
[1743813565940,3.71509,1817.0,1816.9,2.1983]
[1743813566242,3.71509,1817.0,1816.9,2.95872894]
[1743813568144,4.25077,1817.1,1817.0,0.77079]
[1743813568336,4.25077,1817.1,1817.0,3.02061894]
[1743813571746,5.72707,1817.1,1817.0,3.02061894]
[1743813572144,5.72707,1817.1,1817.0,3.82576891]
[1743813572347,5.72707,1817.1,1817.0,3.02061894]
[1743813572644,5.72707,1817.1,1817.0,3.82577192]
[1743813572846,5.72707,1817.1,1817.0,3.02061894]
[1743813573254,5.72707,1817.1,1817.0,3.82603219]
[1743813573848,2.24707,1817.1,1817.0,3.82603219]
[1743813574049,4.8867,1817.2,1817.1,0.77075]
[1743813574253,4.8867,1817.2,1817.1,2.19575]
[1743813574550,4.8867,1817.2,1817.1,2.95617894]
[1743813575551,5.65744,1817.2,1817.1,2.95617894]
[1743813575953,1.4067,1817.2,1817.1,3.76223012]
[1743813576154,2.26624516,1817.3,1817.2,0.7707]
[1743813576350,3.02534516,1817.3,1817.2,2.95612894]
[1743813577160,3.02534516,1817.3,1817.2,3.76232871]
[1743813578453,2.25464516,1817.3,1817.2,3.76232871]
[1743813578754,0.76734516,1817.3,1817.2,3.76232871]
[1743813578956,0.00824516,1817.3,1817.2,4.46332871]
[1743813579157,0.77890516,1817.3,1817.2,4.46332871]
[1743813580261,0.77890516,1817.3,1817.2,2.33732871]
[1743813580455,2.21460516,1817.3,1817.2,0.76042894]
[1743813580752,2.21460516,1817.3,1817.2,1.53112894]
[1743813585960,2.21460516,1817.3,1817.2,2.93642894]
[1743813589067,2.21460516,1817.3,1817.2,2.16572894]
[1743813589270,2.21460516,1817.3,1817.2,0.76042894]
[1743813589470,2.21460516,1817.3,1817.2,1.53112894]
[1743813589771,2.21460516,1817.3,1817.2,0.7707]
[1743813590871,2.21460516,1817.3,1817.2,1.53261591]
[1743813591366,2.21460516,1817.3,1817.2,3.05831591]
[1743813593470,2.21460516,1817.3,1817.2,3.86423771]
[1743813597970,2.21460516,1817.3,1817.2,3.09353771]
[1743813598180,2.21460516,1817.3,1817.2,1.53261591]
[1743813598365,2.21460516,1817.3,1817.2,0.76191591]
[1743813598769,2.21460516,1817.3,1817.2,1.53261591]
[1743813599775,2.21460516,1817.3,1817.2,0.76191591]
[1743813601679,2.21460516,1817.3,1817.2,1.53261591]
[1743813602078,2.21460516,1817.3,1817.2,0.76191591]
[1743813602879,2.21460516,1817.3,1817.2,1.53261591]
[1743813603880,2.92880516,1817.3,1817.2,1.53261591]
[1743813604473,2.92880516,1817.3,1817.2,0.76191591]
[1743813604680,2.92880516,1817.3,1817.2,1.53261591]
[1743813605385,2.92880516,1817.3,1817.2,0.76191591]
[1743813608086,2.92880516,1817.3,1817.2,1.53261591]
[1743813614091,2.92880516,1817.3,1817.2,0.76191591]
[1743813616497,2.92880516,1817.3,1817.2,1.53261591]
[1743813618595,2.92880516,1817.3,1817.2,0.76191591]
[1743813619186,2.92880516,1817.3,1817.2,2.26081591]
[1743813619893,2.92880516,1817.3,1817.2,3.03151591]
[1743813621295,2.92880516,1817.3,1817.2,2.26081591]
[1743813623800,2.92880516,1817.3,1817.2,3.03151591]
[1743813624697,2.92880516,1817.3,1817.2,2.26081591]
[1743813624898,2.92880516,1817.3,1817.2,0.76191591]
[1743813625091,6.13660516,1817.3,1817.2,0.76191591]
[1743813625487,0.77075,1817.1,1817.0,1.4805]
[1743813625691,0.77075,1817.1,1817.0,2.28787813]
[1743813625896,3.73915,1817.1,1817.0,2.28787813]
[1743813626096,3.73915,1817.1,1817.0,3.05139788]
[1743813627797,3.73915,1817.1,1817.0,1.57089788]
[1743813629398,3.73915,1817.1,1817.0,0.76351975]
[1743813629993,6.94695,1817.1,1817.0,0.76351975]
[1743813630198,0.77083,1816.9,1816.8,1.45834516]
[1743813630398,0.77083,1816.9,1816.8,2.26549714]
[1743813630598,4.25083,1816.9,1816.8,3.02878629]
[1743813630795,5.01493,1816.9,1816.8,3.02878629]
[1743813630993,5.01493,1816.9,1816.8,0.77153431]
[1743813630994,8.22273,1816.9,1816.8,0.77153431]
[1743813631194,10.72273,1816.9,1816.8,4.31e-06]
[1743813631396,9.9519,1816.9,1815.8,12.89665402]
[1743813631699,0.77155,1815.2,1815.1,144.76799298]
[1743813631905,8.53135,1815.2,1815.1,144.76799298]
[1743813632101,5.13616,1815.7,1815.1,144.76799298]
[1743813632306,0.77143,1815.5,1815.1,147.97579298]
[1743813632503,0.00824516,1815.3,1815.2,27.50190277]
[1743813632705,4.575,1815.5,1815.2,26.79329058]
[1743813632997,4.572,1815.5,1815.2,29.20170277]
[1743813633199,7.7818,1815.8,1815.3,1.508]
[1743813633397,3.2078,1815.6,1815.3,1.508]
[1743813633600,3.97927,1815.4,1815.3,1.508]
[1743813634200,0.77151,1815.3,1815.2,25.99390277]
[1743813634501,3.97929,1815.4,1815.3,1.508]
[1743813634698,0.77145,1815.5,1815.3,1.508]
[1743813634898,0.77147,1815.4,1815.3,1.508]
[1743813635099,3.97927,1815.4,1815.3,1.508]
[1743813635303,0.77151,1815.3,1815.2,25.99390277]
[1743813635502,2.19001,1815.3,1815.2,25.99390277]
[1743813635802,2.19001,1815.3,1815.2,27.42960277]
[1743813637107,0.77151,1815.3,1815.2,27.42960277]
[1743813637804,2.19001,1815.3,1815.2,27.42960277]
[1743813638806,2.19001,1815.3,1815.2,1.42745484]
[1743813640001,0.7716,1815.1,1815.0,0.00824516]
[1743813640195,8.5084,1815.1,1815.0,0.00824516]
[1743813648823,11.0084,1815.1,1815.0,0.00824516]
[1743813650319,11.0084,1815.1,1815.0,5.16e-06]
[1743813650916,11.7714,1815.1,1815.0,5.16e-06]
[1743813654025,8.5084,1815.1,1815.0,5.16e-06]
[1743813654525,8.3934,1815.1,1815.0,5.16e-06]
[1743813655126,8.3934,1815.1,1815.0,0.69550516]
[1743813655328,8.3914,1815.1,1815.0,0.69550516]
[1743813658028,3.2078,1815.1,1815.0,1.46714516]
[1743813658329,0.77156,1815.2,1815.0,1.46711516]
[1743813658521,0.77156,1815.2,1815.1,2.1505]
[1743813658723,4.391,1815.3,1815.1,2.92209]
[1743813658924,5.16254,1815.3,1815.2,1.4358]
[1743813660628,3.2078,1815.4,1815.2,1.4358]
[1743813660832,4.373,1815.5,1815.3,0.7715]
[1743813661032,4.373,1815.5,1815.1,0.7147]
[1743813661333,0.77151,1815.4,1815.3,0.77151]
[1743813661521,0.77151,1815.4,1815.3,0.70084967]
[1743813661833,5.14444,1815.5,1815.3,0.70084967]
[1743813662030,0.77147,1815.4,1815.2,0.77152]
[1743813662438,0.77154,1815.3,1815.1,1.48627]
[1743813662832,0.77155,1815.2,1815.1,1.48627]
[1743813663031,9.50938,1815.5,1815.1,2.18691958]
[1743813663225,0.77154,1815.3,1815.2,0.70064958]
[1743813664237,0.77154,1815.3,1815.2,1.47219958]
[1743813664437,0.77154,1815.3,1815.2,0.70064958]
[1743813664736,0.77154,1815.3,1815.1,1.48627]
[1743813665236,0.77154,1815.3,1815.2,0.77155]
[1743813665437,0.77154,1815.3,1815.1,1.48627]
[1743813666039,0.77155,1815.2,1815.1,1.48627]
[1743813667040,0.77155,1815.3,1815.2,0.77154]
[1743813667240,0.77155,1815.2,1815.1,1.48626]
[1743813667736,0.77154,1815.3,1815.2,0.77154]
[1743813667939,0.77155,1815.2,1815.1,1.48626]
[1743813670740,0.77154,1815.3,1815.2,0.77153]
[1743813671038,0.77153,1815.3,1815.2,0.77151]
[1743813672043,11.40548337,1815.4,1815.3,0.77151]
[1743813672241,0.77154,1815.3,1815.2,0.77152]
[1743813673242,11.40549337,1815.4,1815.3,0.77151]
[1743813675441,0.77151,1815.3,1815.2,0.77153]
[1743813675637,0.77151,1815.3,1815.2,0.77155]
[1743813676255,0.77155,1815.2,1815.1,0.7147]
[1743813676746,0.77155,1815.2,1815.1,1.4863]
[1743813678436,0.77155,1815.2,1815.1,1.4063]
[1743813679643,0.77155,1815.2,1815.1,2.8738]
[1743813682451,2.25985,1815.2,1815.1,2.1822]
[1743813682950,2.25985,1815.2,1815.1,1.4675]
[1743813683254,0.7716,1815.1,1815.0,5.16e-06]
[1743813683447,3.0011,1815.1,1815.0,1.50380516]
[1743813689354,6.2089,1815.1,1815.0,5.16e-06]
[1743813693558,0.77168,1814.9,1814.8,1.434]
[1743813694356,2.21748,1814.9,1814.8,1.434]
[1743813695960,0.77168,1814.9,1814.8,2.20572]
[1743813696162,0.77165,1815.0,1814.9,0.77165]
[1743813696352,0.77165,1815.0,1814.9,3.73115]
[1743813696558,0.77165,1815.0,1814.9,3.73118]
[1743813697262,0.77165,1815.0,1814.9,2.9595]
[1743813698557,10.01101,1815.1,1814.7,0.00824516]
[1743813698756,0.77172,1814.8,1814.7,1.54140516]
[1743813698953,0.77172,1814.8,1814.7,2.26130516]
[1743813699860,0.77172,1814.8,1814.7,1.48954516]
[1743813700356,0.77172,1814.8,1814.7,2.87034516]
[1743813700759,0.77172,1814.8,1814.7,3.64211516]
[1743813701156,0.77172,1814.8,1814.7,2.87034516]
[1743813702158,0.77172,1814.8,1814.7,3.64211516]
[1743813702357,0.77172,1814.8,1814.7,2.87034516]
[1743813702558,1.48552,1814.8,1814.7,1.38904516]
[1743813702762,2.96402,1814.8,1814.7,1.38904516]
[1743813704653,7.06302,1814.8,1814.7,1.38904516]
[1743813705862,9.56302,1814.8,1814.7,5.16e-06]
[1743813706255,7.06702,1814.8,1814.7,5.16e-06]
[1743813706661,0.77177,1814.7,1814.6,1.4654]
[1743813706862,3.97957,1814.7,1814.6,1.4654]
[1743813707963,6.21317,1814.7,1814.6,1.4654]
[1743813708662,4.71737,1814.7,1814.6,1.4654]
[1743813708858,3.97957,1814.7,1814.6,1.4654]
[1743813711460,5.51037,1814.7,1814.6,1.4654]
[1743813712066,3.97957,1814.7,1814.6,1.4654]
[1743813720870,0.77177,1814.7,1814.6,1.4654]
[1743813721164,10.65691,1815.1,1814.7,0.77174]
[1743813721368,0.77172,1814.8,1814.7,1.50354]
[1743813721569,0.77172,1814.8,1814.7,0.7318]
[1743813721870,0.7717,1814.9,1814.7,1.50357]